bitfinex-derivatives/quotes_ETHF0:USTF0_20250903
["timestamp","ask_amount","ask_price","bid_price","bid_amount"]
[1756906823588,3.2078,4391.8,4390.5,0.3166]
[1756906823589,1.21920484,4390.9,4390.5,0.3166]
[1756906823788,1.21920484,4391.0,4390.9,0.7496]
[1756906823989,1.41039143,4391.0,4390.9,0.7496]
[1756906824284,0.7749,4390.9,4390.2,3.2078]
[1756906824483,3.2078,4390.8,4390.3,2.14411266]
[1756906824684,0.7749,4390.7,4390.4,2.79672218]
[1756906824880,0.7749,4390.5,4390.4,4.94083484]
[1756906825076,0.7749,4390.5,4390.1,40.8]
[1756906825281,3.2078,4390.8,4390.2,2.14411266]
[1756906825282,1.62762691,4390.8,4390.2,2.14411266]
[1756906825479,1.62762691,4391.1,4390.7,4.94083484]
[1756906825783,1.62762691,4391.1,4391.0,0.7496]
[1756906825983,1.87562691,4391.4,4391.1,0.7496]
[1756906826290,1.62762691,4391.3,4391.2,0.7496]
[1756906826486,1.62762691,4391.3,4391.2,2.14411266]
[1756906826692,0.7749,4391.1,4391.0,40.8]
[1756906827886,5.24249109,4391.4,4391.1,0.7496]
[1756906828079,5.24249109,4391.4,4391.2,0.7496]
[1756906828284,5.24249109,4391.4,4391.3,40.8]
[1756906828589,0.7749,4391.5,4391.2,0.7496]
[1756906828888,0.7749,4391.2,4390.1,0.248]
[1756906829191,1.62931132,4391.1,4390.8,3.2078]
[1756906829384,1.62931132,4390.9,4390.8,3.2078]
[1756906829584,1.62931132,4391.0,4390.9,0.29840047]
[1756906829788,1.62931132,4391.0,4389.9,3.2078]
[1756906829789,0.90807207,4391.0,4389.9,3.2078]
[1756906829984,2.24857335,4390.9,4390.6,2.79672218]
[1756906830180,0.7749,4390.7,4390.6,2.79672218]
[1756906830379,1.39187207,4390.7,4389.9,3.2078]
[1756906830586,3.2078,4390.5,4388.8,3.2078]
[1756906830789,3.2078,4390.5,4389.5,2.79672218]
[1756906830790,1.63160128,4389.9,4389.5,2.79672218]
[1756906830999,0.61179858,4389.8,4389.5,3.2078]
[1756906831193,0.7749,4390.1,4389.5,3.2078]
[1756906831194,0.61179858,4389.7,4389.6,41.09840047]
[1756906831382,0.61179858,4389.7,4389.6,44.79642852]
[1756906831787,0.61179858,4389.7,4389.6,40.8]
[1756906832580,0.61179858,4389.7,4389.6,49.04442852]
[1756906832782,0.61179858,4390.5,4389.6,49.04442852]
[1756906832984,2.03643501,4391.2,4390.4,3.50620047]
[1756906832985,1.63160128,4391.0,4390.4,3.50620047]
[1756906833192,1.87960128,4391.1,4390.9,3.09512265]
[1756906833391,1.87960128,4391.1,4390.7,3.2078]
[1756906833392,0.59857642,4391.0,4390.7,3.2078]
[1756906833691,0.59857642,4390.9,4390.7,3.2078]
[1756906833881,1.63160128,4391.2,4390.8,0.29840047]
[1756906834082,0.59561291,4391.1,4390.8,0.29840047]
[1756906834286,1.37051291,4391.0,4390.9,0.29840047]
[1756906834488,1.66161291,4391.0,4390.9,0.29840047]
[1756906834683,1.66161291,4391.0,4389.7,4.22418852]
[1756906834684,0.7749,4390.9,4389.9,0.248]
[1756906834889,1.066,4390.5,4390.4,2.79672218]
[1756906835091,1.66161291,4390.5,4390.4,2.79672218]
[1756906835298,1.66161291,4390.5,4390.4,0.29840047]
[1756906835492,0.59561291,4390.5,4390.4,3.09512265]
[1756906835894,3.29321419,4390.5,4390.4,40.8]
[1756906836088,3.54121419,4390.5,4390.4,40.8]
[1756906836494,0.7749,4390.4,4389.3,0.248]
[1756906836685,3.2078,4389.9,4389.5,2.79672218]
[1756906836891,0.7749,4389.7,4389.6,40.8]
[1756906837091,1.37051291,4389.7,4389.6,40.8]
[1756906837287,0.59561291,4389.7,4389.6,40.8]
[1756906837496,0.59561291,4389.7,4389.6,45.048]
[1756906838198,1.42991318,4390.9,4390.5,2.79672218]
[1756906838394,1.066,4391.5,4390.6,3.4558]
[1756906838696,0.7749,4391.4,4391.1,3.2078]
[1756906838992,0.248,4391.8,4391.1,3.2078]
[1756906839196,1.0229,4391.9,4391.6,2.79672218]
[1756906839391,0.7749,4391.8,4391.6,2.79672218]
[1756906839591,3.2078,4392.4,4391.8,2.79672218]
[1756906839895,1.0229,4392.3,4392.1,2.79672218]
[1756906840196,1.0229,4392.3,4391.7,0.248]
[1756906840390,0.7749,4392.2,4392.1,2.79672218]
[1756906840593,0.7749,4392.4,4392.1,6.00452218]
[1756906840793,0.2911,4392.5,4392.2,2.79672218]
[1756906841192,3.99642852,4393.6,4392.1,3.2078]
[1756906841193,3.2078,4392.9,4392.1,3.2078]
[1756906841398,3.2078,4392.9,4392.1,3.4558]
[1756906841592,0.5391,4393.0,4392.6,3.2078]
[1756906841793,0.5391,4393.0,4392.6,6.00452218]
[1756906842102,0.247,4393.1,4392.9,2.79672218]
[1756906842393,0.3165,4393.0,4392.6,3.2078]
[1756906842594,0.3165,4393.0,4391.8,3.2078]
[1756906842595,0.7402,4392.9,4391.8,3.2078]
[1756906842898,3.2078,4392.8,4392.5,40.8]
[1756906843095,0.7402,4392.7,4392.5,40.8]
[1756906843290,0.247,4392.6,4392.5,40.8]
[1756906843492,0.9872,4392.6,4392.5,40.8]
[1756906843694,4.9872,4392.6,4392.5,40.8]
[1756906843889,0.9872,4392.6,4392.5,40.8]
[1756906844693,4.9872,4392.6,4392.5,40.8]
[1756906844894,0.3165,4392.5,4391.3,3.2078]
[1756906845099,0.3165,4392.5,4391.6,2.79672218]
[1756906845295,0.7402,4391.9,4390.8,3.2078]
[1756906845510,0.247,4391.8,4390.9,40.8]
[1756906845695,0.3165,4391.5,4391.0,2.79672218]
[1756906845895,0.3165,4391.0,4390.9,43.59672218]
[1756906846096,1.0567,4391.0,4390.9,43.59672218]
[1756906846296,1.0567,4391.0,4390.9,40.8]
[1756906846505,1.0567,4391.0,4389.9,0.247]
[1756906846703,1.0567,4391.0,4389.7,3.2078]
[1756906846704,1.0567,4390.5,4389.7,3.2078]
[1756906846903,0.3165,4391.0,4390.3,3.99642852]
[1756906847096,0.3165,4391.0,4390.3,4.24342852]
[1756906847299,0.3165,4391.0,4390.5,2.79672218]
[1756906847496,0.7402,4390.9,4390.6,40.8]
[1756906847898,0.3165,4391.0,4390.6,40.8]
[1756906848099,0.247,4390.9,4390.6,40.8]
[1756906848296,3.948,4390.7,4390.6,40.8]
[1756906848492,0.9872,4390.7,4390.6,40.8]
[1756906849292,0.247,4390.7,4390.6,40.8]
[1756906849492,0.9872,4390.7,4390.6,40.8]
[1756906850303,0.83852512,4390.7,4390.6,40.8]
[1756906850501,1.57872512,4390.7,4390.6,40.8]
[1756906851603,0.83852512,4390.7,4390.6,40.8]
[1756906851795,0.59152512,4390.7,4390.6,48.2873]
[1756906852001,3.2078,4391.3,4390.6,48.2873]
[1756906852199,0.5915501,4391.2,4390.6,44.2873]
[1756906852403,0.5915501,4391.1,4390.6,44.2548]
[1756906852701,0.5915501,4391.0,4390.6,3.2078]
[1756906852904,0.5915501,4390.9,4390.5,0.247]
[1756906853105,0.5915501,4390.9,4390.7,43.59672218]
[1756906853304,0.5915501,4390.9,4390.8,2.79672218]
[1756906853808,0.5915501,4390.9,4390.7,40.8]
[1756906853809,0.3165,4391.0,4390.7,40.8]
[1756906854003,0.5915501,4390.9,4390.7,40.8]
[1756906854198,4.0463501,4390.8,4389.8,0.247]
[1756906854401,0.5915501,4390.7,4390.3,0.5325]
[1756906854604,0.5915501,4390.6,4390.2,4.24342852]
[1756906854805,0.247,4390.9,4390.5,0.5325]
[1756906855102,0.7402,4390.7,4390.4,40.8]
[1756906855405,1.33207729,4390.6,4390.4,40.8]
[1756906855706,1.33207729,4390.5,4390.4,40.8]
[1756906856108,1.89557729,4390.5,4390.4,40.8]
[1756906856302,1.57907729,4390.5,4390.4,40.8]
[1756906856899,1.15537729,4390.5,4389.6,3.2078]
[1756906857100,0.7402,4389.9,4389.1,3.2078]
[1756906857304,0.3165,4390.0,4389.1,3.2078]
[1756906857305,0.7402,4389.6,4389.2,2.79672218]
[1756906857504,0.3165,4390.0,4389.3,40.8]
[1756906857702,0.59183415,4389.9,4389.3,40.8]
[1756906857902,0.247,4389.8,4389.3,44.79642852]
[1756906858103,0.7402,4389.7,4389.4,0.5325]
[1756906858302,0.247,4390.1,4389.3,41.5795]
[1756906858503,0.7402,4389.9,4389.6,2.79672218]
[1756906858805,0.59167455,4390.0,4389.3,40.8]
[1756906858806,0.7402,4389.4,4389.3,40.8]
[1756906859811,1.32458964,4389.4,4389.3,40.8]
[1756906860601,0.58438964,4389.4,4389.3,40.8]
[1756906860808,1.32451971,4389.4,4389.3,40.8]
[1756906861712,0.83031971,4389.4,4389.3,40.8]
[1756906861902,1.57051971,4389.4,4389.3,40.8]
[1756906862307,0.3165,4389.0,4388.6,3.2078]
[1756906862507,0.7402,4388.8,4387.7,3.2078]
[1756906862807,3.2078,4388.9,4388.0,0.5325]
[1756906863005,3.2078,4388.9,4388.5,0.5325]
[1756906863302,0.3165,4389.5,4388.6,0.5325]
[1756906863502,0.82967541,4389.4,4389.2,2.79672218]
[1756906863710,0.246,4389.3,4389.2,3.32922218]
[1756906864202,0.246,4389.3,4389.2,2.79672218]
[1756906864711,0.3165,4390.0,4389.2,2.79672218]
[1756906864712,3.2078,4390.0,4389.3,0.5325]
[1756906864905,0.246,4390.3,4389.9,0.5325]
[1756906865208,0.246,4390.3,4389.5,7.20422852]
[1756906865209,0.246,4390.3,4390.2,3.32922218]
[1756906865415,0.82931719,4390.3,4390.2,3.32922218]
[1756906865613,0.82931719,4390.3,4390.2,44.12922218]
[1756906865916,0.246,4390.3,4390.2,44.12922218]
[1756906866305,0.246,4390.3,4390.2,43.59672218]
[1756906866505,0.246,4390.3,4390.2,44.12922218]
[1756906866703,3.2078,4391.2,4390.3,0.5325]
[1756906866907,3.2078,4391.2,4390.2,47.59672218]
[1756906866908,0.82926747,4391.1,4390.9,0.5325]
[1756906867201,0.82926747,4391.1,4390.2,41.046]
[1756906867202,3.2078,4391.8,4390.7,0.5325]
[1756906867410,0.82919246,4391.7,4391.3,2.79672218]
[1756906867612,1.32339246,4391.6,4391.3,3.32922218]
[1756906867813,0.246,4391.7,4391.3,2.79672218]
[1756906868015,0.7402,4391.5,4391.3,2.79672218]
[1756906868611,0.246,4391.7,4391.3,2.79672218]
[1756906868809,0.246,4391.7,4390.6,3.2078]
[1756906868810,0.7402,4391.4,4390.6,3.2078]
[1756906869008,3.4538,4391.3,4390.9,2.79672218]
[1756906869203,3.4538,4391.3,4390.8,2.79672218]
[1756906869407,0.7402,4390.9,4390.6,3.2078]
[1756906869608,3.2078,4391.3,4390.7,2.79672218]
[1756906869808,0.246,4391.2,4390.7,2.79672218]
[1756906870212,0.246,4391.2,4390.6,3.7403]
[1756906870710,0.7402,4391.1,4390.9,2.79672218]
[1756906870913,0.246,4391.2,4390.7,0.5332]
[1756906871217,0.246,4391.3,4390.6,3.4538]
[1756906871415,3.2078,4391.2,4391.0,40.8]
[1756906871612,0.7402,4391.1,4391.0,40.8]
[1756906871917,1.32388945,4391.1,4391.0,40.8]
[1756906872107,0.82968945,4391.1,4391.0,44.12892218]
[1756906872310,4.0011,4391.7,4391.0,44.12892218]
[1756906872617,0.3245,4391.5,4391.0,40.8]
[1756906872822,0.58406108,4391.4,4391.0,40.8]
[1756906873412,3.2078,4391.2,4391.0,40.8]
[1756906873608,1.62336108,4391.1,4391.0,40.8]
[1756906874120,1.62236108,4391.1,4391.0,40.8]
[1756906875119,1.62236108,4391.1,4391.0,44.39492218]
[1756906875120,0.58406108,4391.1,4391.0,44.39492218]
[1756906875313,0.246,4391.4,4391.0,43.86272218]
[1756906875611,0.58465268,4391.3,4391.2,3.74]
[1756906875816,0.246,4391.7,4391.2,3.2078]
[1756906876008,0.58463466,4391.6,4391.3,0.5322]
[1756906876208,0.58463466,4391.5,4391.2,3.2078]
[1756906876414,0.58463466,4391.5,4389.5,0.2662]
[1756906876415,0.7933,4391.5,4391.4,40.8]
[1756906876611,0.58460731,4391.5,4391.4,44.12892218]
[1756906877911,0.245,4391.6,4391.4,43.59672218]
[1756906878112,1.0383,4391.6,4391.5,2.79672218]
[1756906878306,1.62278406,4391.6,4391.5,2.79672218]
[1756906878515,0.82948406,4391.6,4391.5,3.32892218]
[1756906879020,0.58448406,4391.6,4391.5,3.32892218]
[1756906879815,0.58448406,4391.6,4391.5,2.79672218]
[1756906880021,0.58448406,4391.6,4391.5,3.32892218]
[1756906880325,0.245,4391.7,4391.6,0.5322]
[1756906880721,0.82916702,4391.7,4391.4,41.3322]
[1756906880922,0.245,4391.7,4391.6,2.79672218]
[1756906881120,1.0383,4391.7,4391.6,2.79672218]
[1756906881315,0.82918085,4391.7,4391.4,40.8]
[1756906881521,0.7933,4391.6,4391.4,40.8]
[1756906881721,0.245,4391.7,4391.4,40.8]
[1756906881925,1.1178,4391.5,4391.4,40.8]
[1756906882221,1.70189379,4391.5,4391.4,40.8]
[1756906883316,0.58409379,4391.5,4391.4,44.12892218]
[1756906883624,0.7933,4391.8,4391.4,44.12892218]
[1756906883824,0.58407053,4391.7,4391.4,40.8]
[1756906884018,1.1178,4391.5,4391.4,40.8]
[1756906884218,0.245,4391.6,4391.4,41.3322]
[1756906885126,1.1178,4391.5,4391.4,40.8]
[1756906885322,1.70187282,4391.5,4391.4,40.8]
[1756906885731,4.90857282,4391.5,4389.6,3.2078]
[1756906885922,0.7933,4390.9,4390.5,2.79672218]
[1756906886120,0.7933,4390.7,4390.5,2.79672218]
[1756906886321,0.7933,4390.7,4390.1,0.5322]
[1756906886520,0.7933,4390.7,4390.5,2.79672218]
[1756906886718,0.7933,4390.7,4390.6,40.8]
[1756906887029,0.7933,4390.7,4389.5,0.245]
[1756906887030,1.1178,4390.5,4389.5,0.245]
[1756906887230,3.2078,4390.3,4390.2,0.5322]
[1756906887424,3.79194546,4390.3,4390.2,44.12892218]
[1756906887927,4.58524546,4390.3,4390.2,40.8]
[1756906888521,8.58524546,4390.3,4390.2,40.8]
[1756906888724,8.58524546,4390.3,4389.2,0.5322]
[1756906888922,8.58524546,4390.3,4388.1,3.2078]
[1756906888923,0.7933,4388.9,4388.1,3.2078]
[1756906889124,0.3245,4388.5,4388.1,3.2078]
[1756906889327,0.3245,4388.5,4387.5,3.2078]
[1756906889328,0.7933,4388.1,4387.5,3.2078]
[1756906889632,0.3245,4388.5,4386.2,3.2078]
[1756906889633,0.7933,4387.4,4386.2,3.2078]
[1756906889924,3.2078,4387.1,4386.3,0.5322]
[1756906890133,0.82920242,4387.0,4386.3,0.5322]
[1756906890429,1.22311157,4387.9,4386.2,3.2078]
[1756906890430,0.245,4388.1,4387.1,0.5322]
[1756906890631,0.245,4388.1,4387.5,3.2078]
[1756906890822,0.246,4388.4,4387.6,0.7782]
[1756906891026,0.246,4388.4,4388.3,0.5322]
[1756906891426,0.246,4388.4,4388.0,3.2078]
[1756906891427,0.7933,4388.3,4387.2,3.74]
[1756906891628,0.7933,4387.9,4387.3,40.8]
[1756906891829,0.246,4387.8,4387.7,2.79672218]
[1756906892028,0.246,4387.8,4387.7,3.32892218]
[1756906892931,0.246,4388.3,4387.7,3.32892218]
[1756906893136,0.246,4388.3,4387.5,0.512]
[1756906893330,0.246,4388.3,4388.2,2.79672218]
[1756906893531,1.0393,4388.3,4388.2,2.79672218]
[1756906893831,0.7933,4388.2,4387.2,3.2078]
[1756906894026,0.7933,4387.8,4386.9,0.246]
[1756906894221,1.0393,4387.7,4387.6,2.79672218]
[1756906894434,1.0393,4387.7,4386.8,0.5322]
[1756906894634,0.246,4387.7,4386.8,0.7782]
[1756906894837,3.2078,4387.9,4386.9,0.5322]
[1756906894838,0.7933,4387.8,4386.9,0.5322]
[1756906895229,0.7933,4387.8,4386.7,3.2078]
[1756906895230,0.3245,4387.5,4386.7,3.2078]
[1756906895431,0.3245,4387.5,4387.4,2.79672218]
[1756906895634,1.1178,4387.5,4386.7,3.2078]
[1756906895835,1.1178,4387.5,4386.2,3.2078]
[1756906895836,4.0011,4387.4,4386.2,3.2078]
[1756906896041,3.2078,4387.4,4386.8,2.79672218]
[1756906896331,0.7933,4387.3,4386.8,2.79672218]
[1756906896535,0.7933,4387.1,4386.2,3.2078]
[1756906896735,0.7933,4386.9,4386.8,2.79672218]
[1756906897040,0.7933,4386.9,4386.2,3.2078]
[1756906897336,0.7933,4386.9,4386.8,2.79672218]
[1756906897529,3.2078,4387.9,4386.8,2.79672218]
[1756906897530,0.246,4387.4,4386.8,6.53672218]
[1756906897726,0.246,4387.3,4386.3,3.2078]
[1756906897936,0.7933,4387.1,4386.3,3.2078]
[1756906898138,4.0011,4386.9,4386.8,2.79672218]
[1756906898332,4.0011,4386.9,4386.7,2.79672218]
[1756906898536,0.3245,4386.5,4385.6,3.2078]
[1756906898832,3.4538,4386.4,4385.9,2.79672218]
[1756906899028,3.4538,4386.4,4385.8,2.79672218]
[1756906899231,3.4538,4386.4,4385.1,3.74]
[1756906899232,0.7933,4386.3,4385.1,3.74]
[1756906899525,3.4538,4386.4,4385.7,0.5322]
[1756906899526,3.2078,4386.4,4385.7,0.5322]
[1756906899726,0.246,4386.6,4386.4,0.5322]
[1756906900032,3.2078,4386.9,4386.4,0.5322]
[1756906900239,0.246,4386.8,4386.5,40.8]
[1756906900431,0.246,4387.1,4386.7,3.2078]
[1756906900630,0.246,4387.1,4386.8,0.5322]
[1756906900826,33.6173,4387.6,4387.0,2.79672218]
[1756906900827,0.246,4387.5,4387.0,2.79672218]
[1756906901027,0.246,4387.5,4386.7,3.74]
[1756906901232,0.7933,4387.4,4387.3,2.79672218]
[1756906901433,0.246,4387.5,4386.7,3.74]
[1756906901633,0.7323,4387.4,4387.3,2.79672218]
[1756906902135,0.7323,4387.4,4386.7,3.74]
[1756906902333,3.7453,4387.5,4386.9,2.79672218]
[1756906902530,0.7323,4387.4,4386.9,2.79672218]
[1756906902734,0.7323,4387.4,4386.5,40.8]
[1756906902936,0.2915,4387.0,4386.5,40.8]
[1756906903140,0.246,4386.9,4386.5,40.8]
[1756906904143,0.7323,4386.7,4386.5,40.8]
[1756906904440,0.7323,4386.4,4385.7,3.2078]
[1756906904640,0.246,4386.3,4385.7,3.2078]
[1756906904834,0.246,4386.3,4385.8,40.8]
[1756906905535,3.2078,4386.5,4385.8,40.8]
[1756906905737,0.7323,4386.8,4385.8,41.046]
[1756906905939,0.246,4386.7,4386.6,2.79672218]
[1756906906141,0.246,4386.7,4386.6,3.30082218]
[1756906906336,0.246,4386.7,4386.6,0.5041]
[1756906906534,0.7323,4387.3,4386.6,41.3041]
[1756906906737,0.246,4387.2,4386.8,3.2078]
[1756906907237,0.246,4387.2,4387.1,2.79672218]
[1756906907639,0.246,4387.2,4386.9,0.5041]
[1756906907840,0.246,4387.2,4387.1,3.30082218]
[1756906908144,0.245,4388.3,4387.2,0.5041]
[1756906908344,0.245,4388.3,4388.0,2.79672218]
[1756906908541,0.245,4388.3,4388.1,40.8]
[1756906908742,0.7323,4388.2,4388.1,43.59672218]
[1756906909040,33.5673,4389.4,4388.3,0.5041]
[1756906909235,0.245,4389.3,4388.6,3.2078]
[1756906909433,0.245,4389.3,4388.6,3.4528]
[1756906909633,0.245,4389.3,4389.2,3.30082218]
[1756906909833,0.245,4389.5,4389.2,2.79672218]
[1756906910040,0.245,4389.5,4389.3,2.79672218]
[1756906910434,0.245,4389.5,4389.1,3.7119]
[1756906910639,0.245,4389.5,4389.3,2.79672218]
[1756906910835,0.9773,4389.5,4389.3,2.79672218]
[1756906911041,0.245,4389.5,4388.7,0.5041]
[1756906911236,0.7323,4389.4,4389.3,2.79672218]
[1756906911742,0.7323,4389.4,4388.7,0.7491]
[1756906911948,0.7323,4389.4,4389.3,2.79672218]
[1756906912149,4.26587,4390.1,4389.3,3.30082218]
[1756906912339,0.82622575,4390.0,4389.3,0.7491]
[1756906912546,0.9773,4390.0,4389.9,2.79672218]
[1756906912846,1.85004019,4390.0,4389.9,2.79672218]
[1756906913042,1.85004019,4390.0,4389.2,3.2078]
[1756906913238,1.2688,4390.0,4389.9,2.79672218]
[1756906913437,1.60539569,4390.0,4389.9,2.79672218]
[1756906913642,1.05807,4390.1,4389.9,3.30082218]
[1756906913941,1.05807,4390.1,4390.0,2.79672218]
[1756906914541,1.05807,4390.1,4390.0,43.59672218]
[1756906914746,1.79037,4390.1,4390.0,40.8]
[1756906915053,2.37230976,4390.1,4390.0,40.8]
[1756906915447,1.64000976,4390.1,4390.0,44.10082218]
[1756906915645,2.37230976,4390.1,4390.0,40.8]
[1756906915850,2.37230976,4390.1,4390.0,44.10082218]
[1756906915851,1.64000976,4390.1,4390.0,44.10082218]
[1756906916051,1.05807,4390.1,4390.0,48.34582218]
[1756906916252,0.245,4390.9,4390.1,0.5041]
[1756906916454,0.245,4390.9,4390.8,2.79672218]
[1756906916654,0.245,4390.9,4390.8,3.30082218]
[1756906916855,0.245,4390.9,4390.8,0.5041]
[1756906917448,0.7323,4391.3,4390.8,0.5041]
[1756906917648,0.245,4391.2,4391.0,2.79672218]
[1756906917852,0.9773,4391.2,4391.0,2.79672218]
[1756906918156,0.7323,4391.1,4390.5,0.5041]
[1756906918354,1.2688,4391.5,4390.9,3.2078]
[1756906918551,0.2915,4392.0,4391.4,3.2078]
[1756906918552,0.7323,4392.0,4391.4,3.2078]
[1756906918852,3.2078,4392.4,4391.9,2.79672218]
[1756906919157,0.58147612,4392.3,4392.0,40.8]
[1756906919453,0.7323,4392.1,4392.0,40.8]
[1756906919653,0.9773,4392.1,4392.0,40.8]
[1756906920559,0.245,4392.1,4392.0,40.8]
[1756906920760,0.245,4392.1,4392.0,41.3041]
[1756906920952,0.9773,4392.1,4392.0,40.8]
[1756906921846,4.9773,4392.1,4392.0,40.8]
[1756906922652,5.55760744,4392.1,4392.0,40.8]
[1756906924151,5.55760744,4392.1,4390.5,3.2078]
[1756906924152,4.82530744,4392.1,4390.5,3.2078]
[1756906924355,0.7323,4391.2,4390.0,0.5041]
[1756906924553,0.7323,4390.9,4390.5,2.79672218]
[1756906924757,0.7323,4391.5,4390.7,0.5041]
[1756906925063,0.82390395,4391.4,4390.8,0.5041]
[1756906925254,0.244,4391.3,4390.8,0.5041]
[1756906925452,0.244,4391.3,4390.7,0.7481]
[1756906925857,0.9763,4391.3,4390.7,0.5041]
[1756906926054,0.9763,4391.3,4390.6,40.8]
[1756906926055,0.244,4391.3,4390.6,40.8]
[1756906926554,0.2915,4391.0,4390.6,40.8]
[1756906926859,0.7323,4390.7,4390.6,40.8]
[1756906927059,0.2915,4390.5,4389.4,3.7119]
[1756906927362,0.9763,4390.4,4389.5,0.5041]
[1756906927561,0.244,4390.4,4389.9,3.30082218]
[1756906927758,0.7323,4390.3,4390.1,0.5041]
[1756906927958,4.1841,4390.2,4389.6,40.8]
[1756906928255,1.0238,4390.0,4389.6,40.8]
[1756906928462,3.4518,4390.2,4389.7,0.5041]
[1756906928657,0.244,4390.2,4389.9,2.79672218]
[1756906928853,0.244,4390.1,4389.7,0.5041]
[1756906929263,0.2915,4390.0,4389.7,2.79672218]
[1756906929564,0.7323,4389.9,4389.7,2.79672218]
[1756906929764,3.9401,4390.9,4389.7,0.5041]
[1756906929957,0.82461956,4390.8,4390.2,2.79672218]
[1756906930158,0.82461956,4390.8,4389.7,0.5041]
[1756906930159,0.7323,4390.4,4389.7,0.5041]
[1756906930463,3.9401,4390.9,4390.0,0.5041]
[1756906930653,0.82486784,4390.8,4390.5,0.5041]
[1756906930856,0.82486784,4390.7,4390.5,0.5041]
[1756906931090,0.244,4390.6,4390.5,0.5041]
[1756906931566,0.244,4390.6,4390.5,3.30082218]
[1756906931762,0.244,4390.9,4390.5,2.79672218]
[1756906931967,0.244,4390.9,4390.8,2.79672218]
[1756906932165,0.9902,4390.9,4390.3,3.2078]
[1756906932468,0.9902,4390.9,4389.1,4.61711652]
[1756906932469,0.7462,4390.7,4389.7,3.2078]
[1756906932669,1.0337,4390.5,4390.4,40.8]
[1756906932874,1.57149187,4390.5,4390.4,40.8]
[1756906933168,1.85899187,4390.5,4390.4,40.8]
[1756906933568,5.34056187,4390.5,4388.7,3.2078]
[1756906933765,3.2078,4389.8,4388.2,3.2078]
[1756906934064,0.7462,4389.0,4388.8,40.8]
[1756906934268,0.244,4388.9,4388.8,40.8]
[1756906934457,0.9902,4388.9,4388.8,40.8]
[1756906934662,1.5726244,4388.9,4388.8,40.8]
[1756906934858,0.7462,4388.9,4388.8,40.8]
[1756906935063,0.2875,4389.0,4388.9,0.4856]
[1756906935064,0.244,4389.0,4388.9,0.4856]
[1756906935371,0.58244327,4389.0,4388.9,3.28232218]
[1756906935570,0.244,4389.3,4388.9,2.79672218]
[1756906935865,0.244,4389.3,4388.8,3.2078]
[1756906936065,0.9902,4389.3,4389.2,2.79672218]
[1756906936274,1.57330284,4389.3,4389.2,2.79672218]
[1756906936470,0.82710284,4389.3,4388.8,0.4856]
[1756906936769,0.7462,4389.1,4388.7,3.6934]
[1756906937068,3.2078,4389.8,4388.8,0.4856]
[1756906937069,0.7462,4389.7,4388.8,0.4856]
[1756906937261,0.82774417,4389.6,4389.5,2.79672218]
[1756906937459,0.82774417,4389.6,4388.4,4.61711652]
[1756906937460,0.7462,4389.4,4388.4,0.4856]
[1756906937663,3.79154417,4389.3,4388.4,0.4856]
[1756906937869,0.82774417,4389.2,4388.9,2.79672218]
[1756906938172,0.58374417,4389.1,4389.0,0.4856]
[1756906938364,0.58374417,4389.2,4388.8,0.4856]
[1756906938771,0.58374417,4389.2,4388.6,3.2078]
[1756906938973,0.82774417,4389.2,4389.1,3.28232218]
[1756906939170,0.82774417,4389.2,4389.1,2.79672218]
[1756906939463,1.63073204,4390.2,4389.1,11.6888389]
[1756906939464,3.4518,4389.8,4389.1,11.6888389]
[1756906939669,3.4518,4389.8,4389.1,3.6934]
[1756906939869,3.4518,4389.8,4389.7,2.79672218]
[1756906940163,4.198,4389.8,4389.7,2.79672218]
[1756906940377,4.198,4389.8,4389.7,43.59672218]
[1756906940568,3.4518,4389.8,4389.7,43.59672218]
[1756906940769,3.2078,4389.8,4389.7,43.59672218]
[1756906941068,3.954,4389.8,4389.7,43.59672218]
[1756906941666,4.198,4389.8,4389.7,43.59672218]
[1756906942168,1.0337,4390.5,4389.7,46.80452218]
[1756906942358,0.244,4390.9,4390.4,3.2078]
[1756906942558,0.244,4391.4,4390.8,2.79672218]
[1756906942762,0.244,4391.4,4391.1,3.2078]
[1756906942965,0.244,4391.4,4391.3,2.79672218]
[1756906943166,0.9902,4391.4,4391.3,43.59672218]
[1756906943372,0.9902,4391.4,4391.3,40.8]
[1756906943866,4.43091157,4391.9,4391.3,40.8]
[1756906944067,0.7462,4391.7,4391.4,2.79672218]
[1756906944273,0.244,4391.8,4391.3,40.8]
[1756906944473,2.282,4397.2,4391.3,40.8]
[1756906944474,2.84856752,4393.6,4391.7,7.2032389]
[1756906944674,0.2875,4395.0,4393.0,0.40965]
[1756906944972,0.2875,4395.5,4394.7,3.9954389]
[1756906945166,0.7462,4395.4,4394.2,3.9954389]
[1756906945470,0.7462,4395.2,4395.1,40.8]
[1756906945971,0.9912,4395.2,4395.1,40.8]
[1756906946168,3.2078,4395.4,4395.1,40.8]
[1756906946374,0.7462,4395.2,4395.1,40.8]
[1756906946568,3.4953,4396.0,4395.1,40.8]
[1756906946763,3.4953,4396.0,4395.5,1.16671088]
[1756906946969,0.245,4395.9,4395.5,1.16671088]
[1756906947164,0.245,4395.9,4395.4,3.2078]
[1756906947364,0.245,4395.9,4395.6,1.16671088]
[1756906947568,0.7462,4395.8,4395.6,1.16671088]
[1756906947772,0.245,4395.9,4395.4,3.2078]
[1756906947970,0.7462,4395.8,4395.6,1.16671088]
[1756906948165,0.7462,4395.8,4395.4,3.2078]
[1756906948377,0.7462,4395.8,4395.1,40.8]
[1756906948870,0.245,4395.9,4395.4,1.16671088]
[1756906949071,3.2078,4395.6,4395.1,40.8]
[1756906949268,0.9912,4395.5,4395.2,1.16671088]
[1756906949468,0.245,4395.5,4395.2,1.16671088]